fUSD/lending_fUSD_20250905
["ID","MTS","AMOUNT","RATE_DAILY","PERIOD"]
[383652329,1757071847196,-400.0,0.00025205,2]
[383652330,1757071847205,-161.289803,0.00025205,2]
[383652331,1757071847216,-161.07147174,0.00025205,2]
[383652332,1757071847225,-400.0,0.00025205,2]
[383652333,1757071847234,-400.0,0.00025205,2]
[383652334,1757071847244,-400.0,0.00025205,2]
[383652335,1757071847253,-400.0,0.00025205,2]
[383652336,1757071847263,-400.0,0.00025205,2]
[383652337,1757071847274,-400.0,0.00025205,2]
[383652338,1757071847283,-539.96,0.00025205,2]
[383652339,1757071847294,-442.77553766,0.00025205,2]
[383652340,1757071847303,-400.0,0.00025205,2]
[383652341,1757071847312,-400.0,0.00025205,2]
[383652342,1757071847321,-400.0,0.00025205,2]
[383652343,1757071847333,-400.0,0.00025205,2]
[383652344,1757071847342,-400.0,0.00025205,2]
[383652345,1757071847352,-176.22,0.00025205,2]
[383652346,1757071847361,-307.24624902,0.00025205,2]
[383652347,1757071847371,-400.0,0.00025205,2]
[383652348,1757071847380,-400.0,0.00025205,2]
[383652349,1757071847389,-400.0,0.00025205,2]
[383652350,1757071847399,-400.0,0.00025205,2]
[383652351,1757071847408,-305.56905375,0.00025205,2]
[383652352,1757071847417,-484.79,0.00025205,2]
[383652353,1757071847426,-400.0,0.00025205,2]
[383652354,1757071847436,-400.0,0.00025205,2]
[383652355,1757071847446,-400.0,0.00025205,2]
[383652356,1757071847456,-400.0,0.00025205,2]
[383652357,1757071847465,-400.0,0.00025205,2]
[383652358,1757071847475,-400.0,0.00025205,2]
[383652359,1757071847485,-400.0,0.00025205,2]
[383652360,1757071847494,-400.0,0.00025205,2]
[383652361,1757071847504,-479.16,0.00025205,2]
[383652362,1757071847513,-400.0,0.00025205,2]
[383652363,1757071847522,-400.0,0.00025205,2]
[383652364,1757071847534,-524.02,0.00025205,2]
[383652365,1757071847543,-400.0,0.00025205,2]
[383652366,1757071847552,-400.0,0.00025205,2]
[383652367,1757071847561,-400.0,0.00025205,2]
[383652368,1757071847573,-400.0,0.00025205,2]
[383652369,1757071847583,-440.1789957,0.00025205,2]
[383652370,1757071847592,-400.0,0.00025205,2]
[383652371,1757071847602,-400.0,0.00025205,2]
[383652372,1757071847611,-400.0,0.00025205,2]
[383652373,1757071847620,-400.0,0.00025205,2]
[383652374,1757071847630,-400.0,0.00025205,2]
[383652375,1757071847639,-400.0,0.00025205,2]
[383652376,1757071847648,-400.0,0.00025205,2]
[383652377,1757071847657,-400.0,0.00025205,2]
[383652378,1757071847667,-400.0,0.00025205,2]
[383652379,1757071847677,-400.0,0.00025205,2]
[383652380,1757071847687,-1143.26,0.00025205,2]
[383652381,1757071847696,-400.0,0.00025205,2]
[383652382,1757071847706,-400.0,0.00025205,2]
[383652383,1757071847715,-883.23,0.00025205,2]
[383652384,1757071847725,-400.0,0.00025205,2]
[383652385,1757071847734,-561.64,0.00025205,2]
[383652386,1757071847744,-400.0,0.00025205,2]
[383652387,1757071847754,-400.0,0.00025205,2]
[383652388,1757071847765,-400.0,0.00025205,2]
[383652389,1757071847777,-535.08,0.00025205,2]
[383652390,1757071847787,-400.0,0.00025205,2]
[383652391,1757071847798,-400.0,0.00025205,2]
[383652392,1757071847808,-400.0,0.00025205,2]
[383652393,1757071847988,-400.0,0.00025205,2]
[383652394,1757071847998,-400.0,0.00025205,2]
[383652395,1757071848008,-400.0,0.00025205,2]
[383652396,1757071848017,-400.0,0.00025205,2]
[383652397,1757071848027,-1000.0,0.00025205,2]
[383652398,1757071848036,-400.0,0.00025205,2]
[383652399,1757071848046,-425.53,0.00025205,2]
[383652400,1757071848055,-400.0,0.00025205,2]
[383652401,1757071848064,-400.0,0.00025205,2]
[383652402,1757071848074,-400.0,0.00025205,2]
[383652403,1757071848083,-400.0,0.00025205,2]
[383652404,1757071848093,-400.0,0.00025205,2]
[383652405,1757071848104,-407.02994781,0.00025205,2]
[383652406,1757071848113,-400.0,0.00025205,2]
[383652407,1757071848122,-503.12,0.00025205,2]
[383652408,1757071848132,-235.05,0.00025205,2]
[383652409,1757071848141,-400.0,0.00025205,2]
[383652410,1757071848151,-302.36,0.00025205,2]
[383652411,1757071848160,-400.0,0.00025205,2]
[383652412,1757071848169,-400.0,0.00025205,2]
[383652413,1757071848178,-400.0,0.00025205,2]
[383652414,1757071848188,-400.0,0.00025205,2]
[383652415,1757071848197,-546.58,0.00025205,2]
[383652416,1757071848206,-333.58,0.00025205,2]
[383652417,1757071848216,-400.0,0.00025205,2]
[383652418,1757071848225,-619.75,0.00025205,2]
[383652419,1757071848235,-3454.41,0.00025205,2]
[383652420,1757071848244,-400.0,0.00025205,2]
[383652421,1757071848253,-529.11,0.00025205,2]
[383652422,1757071848262,-400.0,0.00025205,2]
[383652423,1757071848272,-400.0,0.00025205,2]
[383652424,1757071848283,-400.0,0.00025205,2]
[383652425,1757071848292,-400.0,0.00025205,2]
[383652426,1757071848302,-921.51,0.00025205,2]
[383652427,1757071848312,-6094.66,0.00025205,2]
[383652428,1757071848321,-400.0,0.00025205,2]
[383652429,1757071848332,-400.0,0.00025205,2]
[383652430,1757071848342,-400.0,0.00025205,2]
[383652431,1757071848352,-400.0,0.00025205,2]
[383652432,1757071848361,-400.0,0.00025205,2]
[383652433,1757071848371,-400.0,0.00025205,2]
[383652434,1757071848380,-150.20806468,0.00025205,2]
[383652435,1757071848389,-400.0,0.00025205,2]
[383652436,1757071848399,-407.16,0.00025205,2]
[383652437,1757071848408,-400.0,0.00025205,2]
[383652438,1757071848417,-400.0,0.00025205,2]
[383652439,1757071848426,-400.0,0.00025205,2]
[383652440,1757071848436,-521.58913461,0.00025205,2]
[383652441,1757071848445,-400.0,0.00025205,2]
[383652442,1757071848454,-400.0,0.00025205,2]
[383652443,1757071848464,-400.0,0.00025205,2]
[383652444,1757071848473,-400.0,0.00025205,2]
[383652445,1757071848482,-400.0,0.00025205,2]
[383652446,1757071848491,-400.0,0.00025205,2]
[383652447,1757071848501,-400.0,0.00025205,2]
[383652448,1757071848510,-402.61594242,0.00025205,2]
[383652449,1757071848519,-941.06,0.00025205,2]
[383652450,1757071848529,-400.0,0.00025205,2]
[383652451,1757071848538,-400.0,0.00025205,2]
[383652452,1757071848548,-400.0,0.00025205,2]
[383652453,1757071848557,-400.0,0.00025205,2]
[383652454,1757071848567,-416.77,0.00025205,2]
[383652455,1757071848580,-400.0,0.00025205,2]
[383652456,1757071848589,-493.37364427,0.00025205,2]
[383652457,1757071848599,-400.0,0.00025205,2]
[383652458,1757071848608,-1124.81,0.00025205,2]
[383652459,1757071848618,-407.38,0.00025205,2]
[383652460,1757071848628,-527.1182402,0.00025205,2]
[383652461,1757071848637,-207.75,0.00025205,2]
[383652462,1757071848647,-186.73,0.00025205,2]
[383652463,1757071848659,-432.14726218,0.00025205,2]
[383652464,1757071848668,-428.78,0.00025205,2]
[383652465,1757071848677,-400.0,0.00025205,2]
[383652466,1757071848687,-4179.24,0.00025205,2]
[383652467,1757071848696,-400.0,0.00025205,2]
[383652468,1757071848705,-400.0,0.00025205,2]
[383652469,1757071848715,-400.0,0.00025205,2]
[383652470,1757071848725,-221.48,0.00025205,2]
[383652471,1757071848734,-2312.65,0.00025205,2]
[383652472,1757071848743,-400.0,0.00025205,2]
[383652473,1757071848753,-400.0,0.00025205,2]
[383652474,1757071848762,-400.0,0.00025205,2]
[383652475,1757071848772,-400.0,0.00025205,2]
[383652476,1757071848782,-400.0,0.00025205,2]
[383652477,1757071848792,-543.35244414,0.00025205,2]
[383652478,1757071848802,-400.0,0.00025205,2]
[383652479,1757071848813,-400.0,0.00025205,2]
[383652480,1757071848822,-471.51034967,0.00025205,2]
[383652481,1757071848832,-400.0,0.00025205,2]
[383652482,1757071848842,-400.0,0.00025205,2]
[383652483,1757071848851,-400.0,0.00025205,2]
[383652484,1757071848865,-651.86,0.00025205,2]
[383652485,1757071848875,-407.57468058,0.00025205,2]
[383652486,1757071848884,-3911.53544514,0.00025238,2]
[383652487,1757071849324,-841.61885968,0.00024321,2]
[383652488,1757071849335,-841.61885968,0.00024613,2]
[383652489,1757071849344,-400.0,0.00024657,2]
[383652490,1757071849354,-500.0,0.00024657,2]
[383652491,1757071849363,-400.0,0.00024657,2]
[383652492,1757071849373,-500.0,0.00024657,2]
[383652493,1757071849382,-500.0,0.00024657,2]
[383652494,1757071849390,-500.0,0.00024657,2]
[383652495,1757071849399,-500.0,0.00024799,2]
[383652496,1757071849412,-509.212854,0.00024899,2]
[383652497,1757071849422,-189.80086154,0.00024931,2]
[383652498,1757071849431,-400.0,0.00024931,2]
[383652499,1757071849441,-400.0,0.00024931,2]
[383652500,1757071849449,-407.51,0.00025205,2]
[383652501,1757071849459,-400.0,0.00025205,2]
[383652502,1757071849468,-400.0,0.00025205,2]
[383652503,1757071849477,-5412.55267702,0.00025238,2]
[383652504,1757071849487,-152.0,0.0002527,3]
[383652505,1757071849496,-2570.0,0.00025287,2]
[383652506,1757071849505,-286.1,0.000253,2]
[383652507,1757071849514,-658.8179331,0.00025341,2]
[383652508,1757071849524,-155.07297553,0.0002537,2]
[383652509,1757071849533,-488.80349,0.0002543,2]
[383652510,1757071849543,-194.0,0.0002547,2]
[383652511,1757071849551,-308.77000538,0.00025479,2]
[383652512,1757071849561,-400.0,0.00025479,2]
[383652513,1757071849570,-400.0,0.00025479,2]
[383652514,1757071849581,-215.35080504,0.00025479,2]
[383652515,1757071849588,-400.0,0.00025479,2]
[383652516,1757071849597,-400.0,0.00025479,2]
[383652517,1757071849604,-400.0,0.00025479,2]
[383652518,1757071849612,-400.0,0.00025479,2]
[383652519,1757071849621,-400.0,0.00025479,2]
[383652520,1757071849628,-400.0,0.00025479,2]
[383652521,1757071849636,-400.0,0.00025479,2]
[383652522,1757071849646,-400.0,0.00025479,2]
[383652523,1757071849654,-411.36951152,0.00025479,2]
[383652524,1757071849662,-400.0,0.00025479,2]
[383652525,1757071849669,-400.0,0.00025479,2]
[383652526,1757071849677,-264.93665926,0.00025479,2]
[383652527,1757071849685,-204.79,0.00025479,2]
[383652528,1757071849693,-400.0,0.00025479,2]
[383652529,1757071849702,-400.0,0.00025479,2]
[383652530,1757071849710,-400.0,0.00025479,2]
[383652531,1757071849719,-401.9539364,0.00025479,2]
[383652532,1757071849729,-200.0,0.00025479,2]
[383652533,1757071849738,-400.0,0.00025479,2]
[383652534,1757071849747,-400.0,0.00025479,2]
[383652535,1757071849757,-195.88696605,0.00025479,2]
[383652536,1757071849767,-400.0,0.00025479,2]
[383652537,1757071849776,-400.0,0.00025479,2]
[383652538,1757071849785,-400.0,0.00025479,2]
[383652539,1757071849796,-413.6992953,0.00025479,2]
[383652540,1757071849805,-400.0,0.00025479,2]
[383652541,1757071849814,-400.0,0.00025479,2]
[383652542,1757071849823,-400.0,0.00025479,2]
[383652543,1757071849832,-524.02,0.00025479,2]
[383652544,1757071849841,-400.0,0.00025479,2]
[383652545,1757071849850,-400.0,0.00025479,2]
[383652546,1757071849859,-400.0,0.00025479,2]
[383652547,1757071849868,-400.0,0.00025479,2]
[383652548,1757071849877,-400.0,0.00025479,2]
[383652549,1757071849886,-400.0,0.00025479,2]
[383652550,1757071849895,-400.0,0.00025479,2]
[383652551,1757071849904,-400.0,0.00025479,2]
[383652552,1757071849913,-400.0,0.00025479,2]
[383652553,1757071849923,-400.0,0.00025479,2]
[383652554,1757071849934,-400.0,0.00025479,2]
[383652555,1757071849943,-400.0,0.00025479,2]
[383652556,1757071849952,-340.7054462,0.00025479,2]
[383652557,1757071849962,-400.0,0.00025479,2]
[383652558,1757071849972,-1143.26,0.00025479,2]
[383652559,1757071849981,-400.0,0.00025479,2]
[383652560,1757071849990,-400.0,0.00025479,2]
[383652561,1757071849999,-883.23,0.00025479,2]
[383652562,1757071850009,-400.0,0.00025479,2]
[383652563,1757071850020,-561.64,0.00025479,2]
[383652564,1757071850030,-400.0,0.00025479,2]
[383652565,1757071850039,-400.0,0.00025479,2]
[383652566,1757071850048,-400.0,0.00025479,2]
[383652567,1757071850058,-535.08,0.00025479,2]
[383652568,1757071850067,-498.10644642,0.00025479,2]
[383652569,1757071850076,-400.0,0.00025479,2]
[383652570,1757071850085,-400.0,0.00025479,2]
[383652571,1757071850095,-400.0,0.00025479,2]
[383652572,1757071850104,-327.14158222,0.00025479,2]
[383652573,1757071850113,-541.10828314,0.00025479,2]
[383652574,1757071850122,-400.0,0.00025479,2]
[383652575,1757071850131,-400.0,0.00025479,2]
[383652576,1757071850140,-400.0,0.00025479,2]
[383652577,1757071850149,-400.0,0.00025479,2]
[383652578,1757071850159,-513.28063304,0.00025479,2]
[383652579,1757071850168,-400.0,0.00025479,2]
[383652580,1757071850177,-400.0,0.00025479,2]
[383652581,1757071850186,-400.0,0.00025479,2]
[383652582,1757071850195,-400.0,0.00025479,2]
[383652583,1757071850205,-327.14546976,0.00025479,2]
[383652584,1757071850214,-400.0,0.00025479,2]
[383652585,1757071850224,-400.0,0.00025479,2]
[383652586,1757071850233,-546.58,0.00025479,2]
[383652587,1757071850243,-400.0,0.00025479,2]
[383652588,1757071850252,-619.75,0.00025479,2]
[383652589,1757071850262,-3454.41,0.00025479,2]
[383652590,1757071850271,-407.41493956,0.00025479,2]
[383652591,1757071850281,-529.11,0.00025479,2]
[383652592,1757071850291,-400.0,0.00025479,2]
[383652593,1757071850300,-400.0,0.00025479,2]
[383652594,1757071850310,-400.0,0.00025479,2]
[383652595,1757071850320,-400.0,0.00025479,2]
[383652596,1757071850330,-921.51,0.00025479,2]
[383652597,1757071850340,-6094.66,0.00025479,2]
[383652598,1757071850350,-421.03801165,0.00025479,2]
[383652599,1757071850360,-400.0,0.00025479,2]
[383652600,1757071850369,-400.0,0.00025479,2]
[383652601,1757071850379,-400.0,0.00025479,2]
[383652602,1757071850389,-400.0,0.00025479,2]
[383652603,1757071850399,-400.0,0.00025479,2]
[383652604,1757071850409,-400.0,0.00025479,2]
[383652605,1757071850419,-400.0,0.00025479,2]
[383652606,1757071850429,-400.0,0.00025479,2]
[383652607,1757071850439,-400.0,0.00025479,2]
[383652608,1757071850449,-205.83996291,0.00025479,2]
[383652609,1757071850458,-400.0,0.00025479,2]
[383652610,1757071850467,-400.0,0.00025479,2]
[383652611,1757071850477,-400.0,0.00025479,2]
[383652612,1757071850486,-400.0,0.00025479,2]
[383652613,1757071850495,-400.0,0.00025479,2]
[383652614,1757071850505,-400.0,0.00025479,2]
[383652615,1757071850514,-941.06,0.00025479,2]
[383652616,1757071850523,-187.47,0.00025479,2]
[383652617,1757071850534,-400.0,0.00025479,2]
[383652618,1757071850543,-400.0,0.00025479,2]
[383652619,1757071850552,-400.0,0.00025479,2]
[383652620,1757071850562,-416.77,0.00025479,2]
[383652621,1757071850573,-400.0,0.00025479,2]
[383652622,1757071850583,-296.4170078,0.00025479,2]
[383652623,1757071850592,-1124.81,0.00025479,2]
[383652624,1757071850754,-428.78,0.00025479,2]
[383652625,1757071850765,-400.0,0.00025479,2]
[383652626,1757071850775,-4179.24,0.00025479,2]
[383652627,1757071850784,-400.0,0.00025479,2]
[383652628,1757071850795,-400.0,0.00025479,2]
[383652629,1757071850805,-400.0,0.00025479,2]
[383652630,1757071850815,-2312.65,0.00025479,2]
[383652631,1757071850824,-400.0,0.00025479,2]
[383652632,1757071850834,-400.0,0.00025479,2]
[383652633,1757071850844,-408.49000924,0.00025479,2]
[383652634,1757071850854,-400.0,0.00025479,2]
[383652635,1757071850864,-400.0,0.00025479,2]
[383652636,1757071850875,-400.0,0.00025479,2]
[383652637,1757071850884,-400.0,0.00025479,2]
[383652638,1757071850895,-400.0,0.00025479,2]
[383652639,1757071850905,-400.0,0.00025479,2]
[383652640,1757071850915,-436.17143856,0.00025479,2]
[383652641,1757071850929,-651.86,0.00025479,2]
[383652642,1757071850939,-400.0,0.00025479,2]
[383652643,1757071850948,-151.0,0.00025491,2]
[383652644,1757071850957,-157.21,0.00025557,2]
[383652645,1757071850966,-9324.08812216,0.00025575,2]
[383652646,1757071850976,-150.0,0.0002559,2]
[383652647,1757071850985,-150.0,0.0002559,2]
[383652648,1757071850994,-150.0,0.0002559,2]
[383652649,1757071851004,-150.0,0.0002559,2]
[383652650,1757071851014,-150.0,0.0002559,2]
[383652651,1757071851023,-150.0,0.0002559,2]
[383652652,1757071851034,-500.0,0.0002559,2]
[383652653,1757071851044,-150.0,0.0002559,2]
[383652654,1757071851053,-150.0,0.0002559,2]
[383652655,1757071851063,-150.0,0.0002559,2]
[383652656,1757071851073,-150.0,0.0002559,2]
[383652657,1757071851082,-150.0,0.0002559,2]
[383652658,1757071851095,-500.0,0.0002559,2]
[383652659,1757071851105,-150.0,0.0002559,2]
[383652660,1757071851114,-150.0,0.0002559,2]
[383652661,1757071851125,-150.0,0.0002559,2]
[383652662,1757071851135,-150.0,0.0002559,2]
[383652663,1757071851145,-150.0,0.0002559,2]
[383652664,1757071851154,-150.0,0.0002559,2]
[383652665,1757071851164,-150.0,0.0002559,2]
[383652666,1757071851174,-150.0,0.0002559,2]
[383652667,1757071851184,-150.0,0.0002559,2]
[383652668,1757071851193,-150.66910024,0.0002559,2]
[383652669,1757071851203,-150.0,0.0002559,2]
[383652670,1757071851213,-150.0,0.0002559,2]
[383652671,1757071851222,-200.0,0.0002559,2]
[383652672,1757071851232,-200.0,0.0002559,2]
[383652673,1757071851242,-150.0,0.0002559,2]
[383652674,1757071851251,-500.0,0.0002559,2]
[383652675,1757071851261,-150.0,0.0002559,2]
[383652676,1757071851271,-150.0,0.0002559,2]
[383652677,1757071851282,-150.0,0.0002559,2]
[383652678,1757071851291,-2990.36684102,0.000256,2]
[383652679,1757071851301,-560.70558343,0.00025602,4]
[383652680,1757071851311,-167.16579211,0.00025602,2]
[383652681,1757071851320,-6839.44938911,0.00025602,2]
[383652682,1757071851330,-9248.20482342,0.00025612,2]
[383652683,1757071851340,-155.07297553,0.00025644,2]
[383652684,1757071851350,-500.0,0.00025649,2]
[383652685,1757071851360,-400.0,0.0002565,2]
[383652686,1757071851371,-400.0,0.0002565,2]
[383652687,1757071851381,-400.0,0.0002565,2]
[383652688,1757071851391,-400.0,0.0002565,2]
[383652689,1757071851400,-400.0,0.0002565,2]
[383652690,1757071851410,-400.0,0.0002565,2]
[383652691,1757071851419,-400.0,0.0002565,2]
[383652692,1757071851429,-400.0,0.0002565,2]
[383652693,1757071851439,-400.0,0.0002565,2]
[383652694,1757071851450,-400.0,0.0002565,2]
[383652695,1757071851461,-400.0,0.0002565,2]
[383652696,1757071851472,-400.0,0.0002565,2]
[383652697,1757071851482,-400.0,0.0002565,2]
[383652698,1757071851492,-400.0,0.0002565,2]
[383652699,1757071851502,-400.0,0.0002565,2]
[383652700,1757071851517,-400.0,0.0002565,2]
[383652701,1757071851527,-400.0,0.0002565,2]
[383652702,1757071851537,-400.0,0.0002565,2]
[383652703,1757071851546,-400.0,0.0002565,2]
[383652704,1757071851556,-400.0,0.0002565,2]
[383652705,1757071851566,-400.0,0.0002565,2]
[383652706,1757071851579,-400.0,0.0002565,2]
[383652707,1757071851589,-400.0,0.0002565,2]
[383652708,1757071851599,-400.0,0.0002565,2]
[383652709,1757071851609,-400.0,0.0002565,2]
[383652710,1757071851621,-400.0,0.0002565,2]
[383652711,1757071851632,-266.33,0.0002565,2]
[383652712,1757071851643,-400.0,0.0002565,2]
[383652713,1757071851654,-400.0,0.0002565,2]
[383652714,1757071851664,-400.0,0.0002565,2]
[383652715,1757071851674,-400.0,0.0002565,2]
[383652716,1757071851684,-400.0,0.0002565,2]
[383652717,1757071851694,-400.0,0.0002565,2]
[383652718,1757071851705,-400.0,0.0002565,2]
[383652719,1757071851718,-452.02121598,0.0002565,2]
[383652720,1757071851729,-400.0,0.0002565,2]
[383652721,1757071851740,-400.0,0.0002565,2]
[383652722,1757071851749,-400.0,0.0002565,2]
[383652723,1757071851758,-283.96,0.0002565,2]
[383652724,1757071851767,-153.14,0.0002565,2]
[383652725,1757071851776,-400.0,0.0002565,2]
[383652726,1757071851784,-400.0,0.0002565,2]
[383652727,1757071851793,-400.0,0.0002565,2]
[383652728,1757071851801,-1299.31,0.0002565,2]
[383652729,1757071851810,-179.16,0.0002565,2]
[383652730,1757071851819,-300.41186264,0.0002565,2]
[383652731,1757071851828,-400.0,0.0002565,2]
[383652732,1757071851836,-500.0,0.0002565,2]
[383652733,1757071851845,-362.32013707,0.0002565,2]
[383652734,1757071851854,-289.90778652,0.0002565,2]
[383652735,1757071851862,-500.0,0.00025654,2]
[383652736,1757071851871,-771.8,0.00025654,2]
[383652737,1757071851882,-500.0,0.00025654,2]
[383652738,1757071851892,-403.32726756,0.00025655,2]
[383652739,1757071851904,-400.0,0.00025655,2]
[383652740,1757071851914,-402.82,0.00025655,2]
[383652741,1757071851924,-406.99665488,0.00025655,2]
[383652742,1757071851934,-400.0,0.00025655,2]
[383652743,1757071851952,-400.0,0.00025655,2]
[383652744,1757071851963,-400.0,0.00025655,2]
[383652745,1757071851973,-400.0,0.00025655,2]
[383652746,1757071851983,-400.0,0.00025655,2]
[383652747,1757071851992,-400.0,0.00025655,2]
[383652748,1757071852002,-400.0,0.00025655,2]
[383652749,1757071852012,-400.0,0.00025655,2]
[383652750,1757071852022,-404.33748984,0.00025655,2]
[383652751,1757071852032,-400.0,0.00025655,2]
[383652752,1757071852042,-400.0,0.00025655,2]
[383652753,1757071852052,-404.4938009,0.00025655,2]
[383652754,1757071852062,-400.0,0.00025655,2]
[383652755,1757071852072,-400.0,0.00025655,2]
[383652756,1757071852081,-400.0,0.00025655,2]
[383652757,1757071852092,-400.0,0.00025655,2]
[383652758,1757071852101,-400.0,0.00025655,2]
[383652759,1757071852112,-400.0,0.00025655,2]
[383652760,1757071852121,-400.0,0.00025655,2]
[383652761,1757071852131,-400.0,0.00025655,2]
[383652762,1757071852140,-421.41454109,0.00025655,2]
[383652763,1757071852150,-400.0,0.00025655,2]
[383652764,1757071852159,-401.89080515,0.00025655,2]
[383652765,1757071852169,-229.19754845,0.00025655,2]
[383652766,1757071852179,-401.25584002,0.00025655,2]
[383652767,1757071852189,-404.93395072,0.00025655,2]
[383652768,1757071852199,-400.0,0.00025655,2]
[383652769,1757071852209,-400.97575573,0.00025655,2]
[383652770,1757071852219,-190.69717866,0.00025655,2]
[383652771,1757071852230,-400.0,0.00025655,2]
[383652772,1757071852240,-400.0,0.00025655,2]
[383652773,1757071852251,-400.0,0.00025655,2]
[383652774,1757071852261,-400.0,0.00025655,2]
[383652775,1757071852272,-400.0,0.00025655,2]
[383652776,1757071852283,-403.34470068,0.00025655,2]
[383652777,1757071852293,-400.0,0.00025655,2]
[383652778,1757071852303,-412.37883283,0.00025655,2]
[383652779,1757071852313,-403.51567814,0.00025655,2]
[383652780,1757071852323,-401.53952426,0.00025655,2]
[383652781,1757071852334,-400.0,0.00025655,2]
[383652782,1757071852346,-500.0,0.00025655,2]
[383652783,1757071852357,-400.0,0.00025655,2]
[383652784,1757071852367,-405.91077895,0.00025655,2]
[383652785,1757071852378,-400.0,0.00025655,2]
[383652786,1757071852388,-400.0,0.00025655,2]
[383652787,1757071852398,-400.0,0.00025655,2]
[383652788,1757071852407,-400.0,0.00025655,2]
[383652789,1757071852418,-400.0,0.00025655,2]
[383652790,1757071852428,-400.0,0.00025655,2]
[383652791,1757071852437,-537.5084575,0.00025655,2]
[383652792,1757071852447,-400.0,0.00025655,2]
[383652793,1757071852457,-402.7694435,0.00025655,2]
[383652794,1757071852467,-400.0,0.00025655,2]
[383652795,1757071852477,-400.0,0.00025655,2]
[383652796,1757071852487,-400.0,0.00025655,2]
[383652797,1757071852497,-400.0,0.00025655,2]
[383652798,1757071852507,-400.0,0.00025655,2]
[383652799,1757071852516,-401.84197289,0.00025655,2]
[383652800,1757071852526,-400.0,0.00025655,2]
[383652801,1757071852535,-400.0,0.00025655,2]
[383652802,1757071852545,-403.51601126,0.00025655,2]
[383652803,1757071852554,-404.10270635,0.00025655,2]
[383652804,1757071852564,-402.78004274,0.00025655,2]
[383652805,1757071852575,-400.0,0.00025655,2]
[383652806,1757071852586,-402.10909637,0.00025655,2]
[383652807,1757071852596,-463.85908036,0.00025655,2]
[383652808,1757071852606,-400.0,0.00025655,2]
[383652809,1757071852616,-405.59,0.00025655,2]
[383652810,1757071852627,-400.0,0.00025655,2]
[383652811,1757071852637,-404.31756005,0.00025655,2]
[383652812,1757071852647,-400.0,0.00025655,2]
[383652813,1757071852659,-400.0,0.00025655,2]
[383652814,1757071852670,-400.0,0.00025655,2]
[383652815,1757071852679,-400.0,0.00025655,2]
[383652816,1757071852689,-400.0,0.00025655,2]
[383652817,1757071852699,-400.0,0.00025655,2]
[383652818,1757071852709,-400.0,0.00025655,2]
[383652819,1757071852719,-400.0,0.00025655,2]
[383652820,1757071852729,-400.0,0.00025655,2]
[383652821,1757071852739,-400.0,0.00025655,2]
[383652822,1757071852749,-400.0,0.00025655,2]
[383652823,1757071852759,-400.0,0.00025655,2]
[383652824,1757071852769,-400.0,0.00025655,2]
[383652825,1757071852781,-400.0,0.00025655,2]
[383652826,1757071852791,-400.0,0.00025655,2]
[383652827,1757071852801,-400.0,0.00025655,2]
[383652828,1757071852811,-400.0,0.00025655,2]